[Event "Niedersachsen-ch B 2024"]
[Site "Verden Aller"]
[Date "2024.01.07"]
[Round "7.13"]
[White "Bangert, Jonas"]
[Black "Rademacher, Bengt"]
[Result "1/2-1/2"]
[ECO "D37"]
[WhiteElo "1527"]
[BlackElo "1702"]
[Annotator "NA RC"]
[PlyCount "41"]
[EventDate "2024.01.01"]
[EventType "swiss"]
[EventCountry "GER"]
[SourceTitle "playchess.com"]
[Source "ChessBase"]
[SourceQuality "1"]
[TimeControl "40/5400+30:1800+30"]

1. d4 {[%emt 0:00:02]} d5 {[%emt 0:00:11]} 2. c4 {[%emt 0:00:04]} e6 {[%emt 0:00:10]} 3. Nf3 {[%emt 0:01:37]} c6 {[%emt 0:02:56]} 4. Nc3 {[%emt 0:00:16]} Nf6 {[%emt 0:00:09]} 5. Bf4 {[%emt 0:01:27]} Nbd7 {[%emt 0:01:53]} 6. e3 {[%emt 0:00:50]} Be7 {[%emt 0:00:33]} 7. Be2 {[%emt 0:11:32]} Nh5 {[%emt 0:07:16]} 8. Bg3 {[%emt 0:01:20]} Nxg3 {[%emt 0:00:36]} 9. hxg3 {[%emt 0:00:06]} dxc4 {[%emt 0:03:43]} 10. Qc2 {[%emt 0:07:18]} h6 {[%emt 0:01:46]} 11. Bxc4 {[%emt 0:00:16]} O-O {[%emt 0:04:51]} 12. g4 {[%emt 0:15:45]} b5 {[%emt 0:01:58]} 13. Bb3 {[%emt 0:04:00]} Bb7 {[%emt 0:04:09]} 14. Bxe6 {[%emt 0:32:48]} fxe6 {[%emt 0:10:44]} 15. Rxh6 {[%emt 0:00:05]} Bf6 {[%emt 0:02:21]} 16. Ng5 {[%emt 0:05:47]} Bxg5 {[%emt 0:04:45]} 17. Qh7+ {[%emt 0:00:13]} Kf7 {[%emt 0:00:07]} 18. Qg6+ {[%emt 0:00:44]} Kg8 {[%emt 0:00:32]} 19. Qh7+ {[%emt 0:01:52]} Kf7 {[%emt 0:00:05]} 20. Qg6+ {[%emt 0:08:49]} Kg8 {[%emt 0:00:10]} 21. Qh7+ {[%emt 0:00:10]} 1/2-1/2

[Event "Niedersachsen-ch B 2024"]
[Site "Verden Aller"]
[Date "2024.01.07"]
[Round "7.14"]
[White "Golke, Philipp"]
[Black "Nordhorn, Horst"]
[Result "1/2-1/2"]
[ECO "B04"]
[WhiteElo "1490"]
[BlackElo "1696"]
[Annotator "NA RC"]
[PlyCount "94"]
[EventDate "2024.01.01"]
[EventType "swiss"]
[EventCountry "GER"]
[SourceTitle "playchess.com"]
[Source "ChessBase"]
[SourceQuality "1"]
[TimeControl "40/5400+30:1800+30"]

1. e4 {[%emt 0:00:05]} Nf6 {[%emt 0:00:07]} 2. e5 {[%emt 0:00:04]} Nd5 {[%emt 0:00:01]} 3. d4 {[%emt 0:00:30]} d6 {[%emt 0:02:26]} 4. c4 {[%emt 0:01:26]} Nb6 {[%emt 0:00:01]} 5. exd6 {[%emt 0:01:05]} cxd6 {[%emt 0:00:01]} 6. Nf3 {[%emt 0:00:11]} g6 {[%emt 0:00:11]} 7. Nc3 {[%emt 0:00:08]} Bg7 {[%emt 0:00:06]} 8. Be3 {[%emt 0:00:21]} O-O {[%emt 0:07:12]} 9. Be2 {[%emt 0:00:36]} Nc6 {[%emt 0:01:17]} 10. Qd2 {[%emt 0:04:30]} e5 {[%emt 0:02:17]} 11. dxe5 {[%emt 0:08:44]} dxe5 {[%emt 0:00:08]} 12. O-O {[%emt 0:03:45]} Qxd2 {[%emt 0:00:24]} 13. Nxd2 {[%emt 0:02:04]} f5 {[%emt 0:00:19]} 14. Bxb6 {[%emt 0:06:58]} axb6 {[%emt 0:03:19]} 15. Nd5 {[%emt 0:02:37]} Nd4 {[%emt 0:00:17]} 16. Bd1 {[%emt 0:00:08]} Bh6 {[%emt 0:02:17]} 17. Nb3 {[%emt 0:00:37]} Nxb3 {[%emt 0:00:08]} 18. Bxb3 {[%emt 0:00:05]} Kg7 {[%emt 0:01:09]} 19. Nxb6 {[%emt 0:00:43]} Ra6 {[%emt 0:00:07]} 20. Nxc8 {[%emt 0:00:05]} Rxc8 {[%emt 0:00:03]} 21. Rad1 {[%emt 0:00:50]} Rc7 {[%emt 0:00:06]} 22. Rd5 {[%emt 0:02:40]} e4 {[%emt 0:02:19]} 23. Rfd1 {[%emt 0:01:50]} Rac6 {[%emt 0:00:38]} 24. g3 {[%emt 0:06:22]} Kf6 {[%emt 0:05:58]} 25. Kg2 {[%emt 0:02:30]} Bf8 {[%emt 0:01:02]} 26. Rb5 {[%emt 0:16:18]} Rd6 {[%emt 0:04:32]} 27. Rxd6+ {[%emt 0:00:57]} Bxd6 {[%emt 0:00:08]} 28. Rb6 {[%emt 0:00:09]} Ke7 {[%emt 0:00:11]} 29. Rb5 {[%emt 0:16:01]} h6 {[%emt 0:10:19]} 30. Rb6 {[%emt 0:07:13]} g5 {[%emt 0:11:15]} 31. c5 {[%emt 0:00:31]} Rxc5 {[%emt 0:03:01]} 32. Rxb7+ {[%emt 0:01:11]} Rc7 {[%emt 0:00:32]} 33. Rxc7+ {[%emt 0:06:45]} Bxc7 {[%emt 0:00:06]} 34. Bc2 {[%emt 0:00:07]} Kf6 {[%emt 0:00:16]} 35. g4 {[%emt 0:00:18]} fxg4 {[%emt 0:00:34]} 36. Bxe4 {[%emt 0:00:06]} Ke5 {[%emt 0:00:19]} 37. Bg6 {[%emt 0:00:54]} Kd4 {[%emt 0:01:07]} 38. Bf5 {[%emt 0:00:37]} h5 {[%emt 0:00:18]} 39. Bg6 {[%emt 0:00:07]} h4 {[%emt 0:00:07]} 40. Bf5 {[%emt 0:02:20]} g3 {[%emt 0:00:16]} 41. hxg3 {[%emt 0:30:02]} hxg3 {[%emt 0:30:06]} 42. fxg3 {[%emt 0:00:09]} Ke3 {[%emt 0:00:32]} 43. g4 {[%emt 0:00:38]} Bd6 {[%emt 0:00:18]} 44. a4 {[%emt 0:00:34]} Bb4 {[%emt 0:00:09]} 45. b3 {[%emt 0:00:07]} Ke2 {[%emt 0:00:19]} 46. Be6 {[%emt 0:04:39]} Ba5 {[%emt 0:07:03]} 47. Bc4+ {[%emt 0:00:05]} Ke3 {[%emt 0:00:20]} 1/2-1/2

[Event "Niedersachsen-ch B 2024"]
[Site "Verden Aller"]
[Date "2024.01.07"]
[Round "7.17"]
[White "Grabowski, Petra"]
[Black "Junge, Julia Marie"]
[Result "1/2-1/2"]
[ECO "D32"]
[WhiteElo "1600"]
[BlackElo "1401"]
[Annotator "NA RC"]
[PlyCount "104"]
[EventDate "2024.01.01"]
[EventType "swiss"]
[EventCountry "GER"]
[SourceTitle "playchess.com"]
[Source "ChessBase"]
[SourceQuality "1"]
[TimeControl "40/5400+30:1800+30"]

1. d4 {[%emt 0:00:03]} e6 {[%emt 0:01:08]} 2. c4 {[%emt 0:00:23]} d5 {[%emt 0:00:34]} 3. Nf3 {[%emt 0:00:32]} c5 {[%emt 0:00:57]} 4. dxc5 {[%emt 0:01:47]} Bxc5 {[%emt 0:01:58]} 5. cxd5 {[%emt 0:01:08]} exd5 {[%emt 0:00:38]} 6. e3 {[%emt 0:01:15]} Nf6 {[%emt 0:01:03]} 7. Nc3 {[%emt 0:02:03]} O-O {[%emt 0:00:39]} 8. Bd3 {[%emt 0:07:38]} Nc6 {[%emt 0:01:11]} 9. O-O {[%emt 0:02:14]} Nb4 {[%emt 0:01:47]} 10. a3 {[%emt 0:09:34]} Nxd3 {[%emt 0:00:47]} 11. Qxd3 {[%emt 0:00:02]} a6 {[%emt 0:03:03]} 12. Rd1 {[%emt 0:02:54]} Be6 {[%emt 0:01:22]} 13. Nd4 {[%emt 0:00:45]} Ng4 {[%emt 0:01:57]} 14. Nf3 {[%emt 0:07:42]} Nf6 {[%emt 0:01:24]} 15. b4 {[%emt 0:00:34]} Ba7 {[%emt 0:03:29]} 16. Bb2 {[%emt 0:00:36]} Qd7 {[%emt 0:02:27]} 17. Ne2 {[%emt 0:04:27]} Ne4 {[%emt 0:03:57]} 18. Nf4 {[%emt 0:06:20]} Rad8 {[%emt 0:05:41]} 19. Rac1 {[%emt 0:05:48]} Qe7 {[%emt 0:05:48]} 20. Nd4 {[%emt 0:13:04]} Nf6 {[%emt 0:06:00]} 21. Nf5 {[%emt 0:05:09]} Bxf5 {[%emt 0:02:37]} 22. Qxf5 {[%emt 0:00:02]} Qd7 {[%emt 0:08:06]} 23. Qg5 {[%emt 0:03:49]} h6 {[%emt 0:01:23]} 24. Qg3 {[%emt 0:00:50]} d4 {[%emt 0:01:28]} 25. Ne2 {[%emt 0:05:00]} Bb8 {[%emt 0:01:52]} 26. Qf3 {[%emt 0:01:11]} Ng4 {[%emt 0:01:49]} 27. h3 {[%emt 0:01:14]} Ne5 {[%emt 0:00:09]} 28. Qe4 {[%emt 0:01:14]} f5 {[%emt 0:01:04]} 29. Qxd4 {[%emt 0:00:37]} Qe7 {[%emt 0:00:40]} 30. Qc5 {[%emt 0:01:24]} Rd6 {[%emt 0:09:06]} 31. Bxe5 {[%emt 0:02:24]} Rxd1+ {[%emt 0:00:56]} 32. Rxd1 {[%emt 0:00:03]} Qxe5 {[%emt 0:00:43]} 33. Qxe5 {[%emt 0:00:12]} Bxe5 {[%emt 0:00:12]} 34. f4 {[%emt 0:02:37]} Bb2 {[%emt 0:00:44]} 35. a4 {[%emt 0:00:27]} Re8 {[%emt 0:00:23]} 36. Kf2 {[%emt 0:00:34]} Re4 {[%emt 0:00:17]} 37. Nd4 {[%emt 0:00:02]} Kf7 {[%emt 0:01:43]} 38. Kf3 {[%emt 0:01:32]} g6 {[%emt 0:00:31]} 39. g4 {[%emt 0:01:18]} h5 {[%emt 0:04:12]} 40. gxh5 {[%emt 0:02:15]} gxh5 {[%emt 0:00:12]} 41. b5 {[%emt 0:30:42]} Bxd4 {[%emt 0:32:54]} 42. Rxd4 {[%emt 0:03:53]} axb5 {[%emt 0:01:01]} 43. axb5 {[%emt 0:02:50]} Rxd4 {[%emt 0:00:22]} 44. exd4 {[%emt 0:00:01]} h4 {[%emt 0:00:25]} 45. d5 {[%emt 0:00:00]} Ke7 {[%emt 0:00:00]} 46. Ke3 {[%emt 0:00:00]} b6 {[%emt 0:00:00]} 47. Kd3 {[%emt 0:00:00]} Kd7 {[%emt 0:00:00]} 48. Kc4 {[%emt 0:00:00]} Kc7 {[%emt 0:00:00]} 49. Kd4 {[%emt 0:00:00]} Kd6 {[%emt 0:00:00]} 50. Kc4 {[%emt 0:00:00]} Kc7 {[%emt 0:00:00]} 51. Kd3 {[%emt 0:00:00]} Kd7 {[%emt 0:00:00]} 52. Kc4 {[%emt 0:00:00]} Kc7 {[%emt 0:00:00]} 1/2-1/2

[Event "Niedersachsen-ch B 2024"]
[Site "Verden Aller"]
[Date "2024.01.07"]
[Round "7.18"]
[White "Homann, Christoph"]
[Black "Lieb, Max"]
[Result "0-1"]
[ECO "D18"]
[WhiteElo "1597"]
[BlackElo "1365"]
[Annotator "NA RC"]
[PlyCount "72"]
[EventDate "2024.01.01"]
[EventType "swiss"]
[EventCountry "GER"]
[SourceTitle "playchess.com"]
[Source "ChessBase"]
[SourceQuality "1"]
[TimeControl "40/5400+30:1800+30"]

1. d4 {[%emt 0:03:17]} d5 {[%emt 0:00:13]} 2. c4 {[%emt 0:00:06]} c6 {[%emt 0:00:09]} 3. Nc3 {[%emt 0:00:36]} Nf6 {[%emt 0:00:09]} 4. Nf3 {[%emt 0:00:08]} dxc4 {[%emt 0:00:11]} 5. a4 {[%emt 0:00:31]} Bf5 {[%emt 0:00:15]} 6. e3 {[%emt 0:01:57]} e6 {[%emt 0:00:17]} 7. Bxc4 {[%emt 0:00:35]} Bb4 {[%emt 0:00:28]} 8. O-O {[%emt 0:03:22]} O-O {[%emt 0:01:01]} 9. Bd2 {[%emt 0:05:55]} Bg6 {[%emt 0:02:42]} 10. Ne2 {[%emt 0:03:17]} Bd6 {[%emt 0:02:45]} 11. Ng3 {[%emt 0:04:25]} Nbd7 {[%emt 0:01:43]} 12. Nh4 {[%emt 0:01:14]} c5 {[%emt 0:01:55]} 13. Nxg6 {[%emt 0:00:42]} hxg6 {[%emt 0:00:11]} 14. dxc5 {[%emt 0:02:12]} Bxc5 {[%emt 0:01:06]} 15. b4 {[%emt 0:01:51]} Ne5 {[%emt 0:04:00]} 16. Be2 {[%emt 0:04:33]} Be7 {[%emt 0:03:34]} 17. f4 {[%emt 0:04:57]} Ned7 {[%emt 0:03:49]} 18. Bf3 {[%emt 0:05:25]} e5 {[%emt 0:04:17]} 19. Kh1 {[%emt 0:04:39]} exf4 {[%emt 0:02:02]} 20. exf4 {[%emt 0:00:06]} Rc8 {[%emt 0:04:23]} 21. b5 {[%emt 0:02:46]} Nb6 {[%emt 0:01:44]} 22. Bxb7 {[%emt 0:03:45]} Rc7 {[%emt 0:00:47]} 23. Bc6 {[%emt 0:00:25]} Nc4 {[%emt 0:02:53]} 24. Bc1 {[%emt 0:03:08]} Na5 {[%emt 0:03:36]} 25. Bf3 {[%emt 0:01:54]} Qc8 {[%emt 0:02:27]} 26. Be3 {[%emt 0:06:29]} Rd8 {[%emt 0:04:23]} 27. Qe1 {[%emt 0:03:09]} Nc4 {[%emt 0:01:20]} 28. Bc6 {[%emt 0:05:28]} Ng4 {[%emt 0:07:59]} 29. Bc1 {[%emt 0:02:16]} Bc5 {[%emt 0:15:54]} 30. Rf3 {[%emt 0:10:32]} Re7 {[%emt 0:05:46]} 31. Qf1 {[%emt 0:02:49]} Nf2+ {[%emt 0:02:23]} 32. Rxf2 {[%emt 0:00:34]} Bxf2 {[%emt 0:00:28]} 33. Qxf2 {[%emt 0:00:17]} Rd1+ {[%emt 0:00:13]} 34. Nf1 {[%emt 0:00:27]} Ree1 {[%emt 0:00:39]} 35. Kg1 {[%emt 0:00:47]} Ne3 {[%emt 0:05:28]} 36. Bxe3 {[%emt 0:05:24]} Rxa1 {[%emt 0:00:16]} 0-1

[Event "Niedersachsen-ch B 2024"]
[Site "Verden Aller"]
[Date "2024.01.07"]
[Round "7.21"]
[White "Wilmink, Luca"]
[Black "Rose, Simeon"]
[Result "1-0"]
[ECO "C01"]
[WhiteElo "1539"]
[BlackElo "1368"]
[Annotator "NA RC"]
[PlyCount "61"]
[EventDate "2024.01.01"]
[EventType "swiss"]
[EventCountry "GER"]
[SourceTitle "playchess.com"]
[Source "ChessBase"]
[SourceQuality "1"]
[TimeControl "40/5400+30:1800+30"]

1. e4 {[%emt 0:00:02]} e6 {[%emt 0:00:10]} 2. d4 {[%emt 0:00:33]} d5 {[%emt 0:00:03]} 3. exd5 {[%emt 0:00:42]} exd5 {[%emt 0:00:06]} 4. Bd3 {[%emt 0:00:46]} Bd6 {[%emt 0:00:05]} 5. Ne2 {[%emt 0:01:21]} Nf6 {[%emt 0:00:15]} 6. Nbc3 {[%emt 0:01:18]} c6 {[%emt 0:00:22]} 7. Bg5 {[%emt 0:01:00]} h6 {[%emt 0:00:13]} 8. Bh4 {[%emt 0:00:30]} Be6 {[%emt 0:00:12]} 9. Bg3 {[%emt 0:01:24]} Qc7 {[%emt 0:01:25]} 10. Qd2 {[%emt 0:02:25]} O-O {[%emt 0:01:38]} 11. O-O {[%emt 0:01:20]} Nbd7 {[%emt 0:00:10]} 12. Nf4 {[%emt 0:09:36]} Rfe8 {[%emt 0:02:02]} 13. Rfe1 {[%emt 0:01:18]} Nf8 {[%emt 0:02:07]} 14. Na4 {[%emt 0:06:55]} Re7 {[%emt 0:06:28]} 15. c4 {[%emt 0:05:43]} dxc4 {[%emt 0:03:30]} 16. Nxe6 {[%emt 0:01:11]} Rxe6 {[%emt 0:02:35]} 17. Rxe6 {[%emt 0:00:45]} Nxe6 {[%emt 0:01:26]} 18. Bxc4 {[%emt 0:00:28]} Ne4 {[%emt 0:03:47]} 19. Qe3 {[%emt 0:04:14]} Nxg3 {[%emt 0:04:09]} 20. hxg3 {[%emt 0:00:08]} Qa5 {[%emt 0:08:00]} 21. Bxe6 {[%emt 0:09:27]} Qxa4 {[%emt 0:00:12]} 22. Bb3 {[%emt 0:01:03]} Qb4 {[%emt 0:01:36]} 23. Re1 {[%emt 0:07:18]} a5 {[%emt 0:08:35]} 24. a3 {[%emt 0:02:54]} Qb6 {[%emt 0:04:50]} 25. Bxf7+ {[%emt 0:02:07]} Kxf7 {[%emt 0:00:53]} 26. Qe6+ {[%emt 0:00:12]} Kf8 {[%emt 0:00:16]} 27. Re3 {[%emt 0:07:46]} Be7 {[%emt 0:03:09]} 28. Qxe7+ {[%emt 0:03:10]} Kg8 {[%emt 0:00:12]} 29. Qe6+ {[%emt 0:00:29]} Kh8 {[%emt 0:00:30]} 30. d5 {[%emt 0:00:06]} cxd5 {[%emt 0:00:36]} 31. Qxb6 {[%emt 0:00:08]} 1-0

[Event "Niedersachsen-ch B 2024"]
[Site "Verden Aller"]
[Date "2024.01.07"]
[Round "7.23"]
[White "Eitel, Luc"]
[Black "Sanchez Tapia, Luis G."]
[Result "1-0"]
[ECO "B44"]
[WhiteElo "1535"]
[BlackElo "1576"]
[Annotator "NA RC"]
[PlyCount "77"]
[EventDate "2024.01.01"]
[EventType "swiss"]
[EventCountry "GER"]
[SourceTitle "playchess.com"]
[Source "ChessBase"]
[SourceQuality "1"]
[TimeControl "40/5400+30:1800+30"]

1. e4 {[%emt 0:00:03]} c5 {[%emt 0:00:03]} 2. Nf3 {[%emt 0:00:05]} e6 {[%emt 0:00:03]} 3. d4 {[%emt 0:00:18]} cxd4 {[%emt 0:00:05]} 4. Nxd4 {[%emt 0:00:01]} Nc6 {[%emt 0:00:07]} 5. c4 {[%emt 0:00:27]} Nf6 {[%emt 0:00:42]} 6. f3 {[%emt 0:00:39]} a6 {[%emt 0:01:21]} 7. Be3 {[%emt 0:00:37]} Qc7 {[%emt 0:04:25]} 8. Nc3 {[%emt 0:00:43]} Ne5 {[%emt 0:03:52]} 9. Qa4 {[%emt 0:05:02]} Be7 {[%emt 0:02:31]} 10. Be2 {[%emt 0:00:57]} O-O {[%emt 0:01:11]} 11. O-O {[%emt 0:01:24]} d6 {[%emt 0:02:09]} 12. Qb3 {[%emt 0:03:16]} Rd8 {[%emt 0:03:33]} 13. Rac1 {[%emt 0:01:22]} Bd7 {[%emt 0:04:01]} 14. f4 {[%emt 0:04:17]} Nc6 {[%emt 0:05:29]} 15. Nxc6 {[%emt 0:05:21]} Bxc6 {[%emt 0:00:36]} 16. Bf3 {[%emt 0:00:50]} Rd7 {[%emt 0:07:07]} 17. Rfd1 {[%emt 0:03:44]} Rc8 {[%emt 0:02:54]} 18. Kh1 {[%emt 0:03:41]} Qb8 {[%emt 0:04:53]} 19. a4 {[%emt 0:02:02]} Rdd8 {[%emt 0:08:40]} 20. a5 {[%emt 0:01:57]} Nd7 {[%emt 0:02:10]} 21. Na4 {[%emt 0:13:06]} Bxa4 {[%emt 0:08:07]} 22. Qxa4 {[%emt 0:00:38]} b5 {[%emt 0:00:07]} 23. axb6 {[%emt 0:00:55]} Nxb6 {[%emt 0:00:23]} 24. Qxa6 {[%emt 0:00:53]} Nd7 {[%emt 0:06:10]} 25. Rb1 {[%emt 0:05:48]} Nc5 {[%emt 0:01:34]} 26. Qa2 {[%emt 0:00:49]} Rd7 {[%emt 0:01:58]} 27. b4 {[%emt 0:00:31]} Nb7 {[%emt 0:05:07]} 28. e5 {[%emt 0:05:41]} Rcd8 {[%emt 0:02:26]} 29. Bb6 {[%emt 0:02:31]} Rc8 {[%emt 0:00:36]} 30. c5 {[%emt 0:01:09]} d5 {[%emt 0:01:33]} 31. Qa4 {[%emt 0:01:56]} Nxc5 {[%emt 0:05:10]} 32. bxc5 {[%emt 0:00:51]} Rb7 {[%emt 0:00:20]} 33. Qa2 {[%emt 0:03:56]} Bxc5 {[%emt 0:00:44]} 34. Bxc5 {[%emt 0:00:29]} Rxc5 {[%emt 0:00:08]} 35. Rxb7 {[%emt 0:00:30]} Qxb7 {[%emt 0:00:09]} 36. Qa4 {[%emt 0:05:26]} g6 {[%emt 0:00:52]} 37. h3 {[%emt 0:00:57]} Kg7 {[%emt 0:17:44]} 38. Qd4 {[%emt 0:00:58]} Rc4 {[%emt 0:00:00]} 39. Qxc4 {[%emt 0:00:32]} 1-0

[Event "Niedersachsen-ch B 2024"]
[Site "Verden Aller"]
[Date "2024.01.07"]
[Round "7.28"]
[White "Wildner, Jens Martin"]
[Black "Schiel, Lucas"]
[Result "1-0"]
[ECO "A61"]
[WhiteElo "1634"]
[BlackElo "1312"]
[Annotator "NA RC"]
[PlyCount "63"]
[EventDate "2024.01.01"]
[EventType "swiss"]
[EventCountry "GER"]
[SourceTitle "playchess.com"]
[Source "ChessBase"]
[SourceQuality "1"]
[TimeControl "40/5400+30:1800+30"]

1. d4 {[%emt 0:00:01]} Nf6 {[%emt 0:00:05]} 2. c4 {[%emt 0:00:03]} c5 {[%emt 0:00:08]} 3. d5 {[%emt 0:00:04]} e6 {[%emt 0:00:07]} 4. Nf3 {[%emt 0:00:05]} exd5 {[%emt 0:00:08]} 5. cxd5 {[%emt 0:00:06]} d6 {[%emt 0:00:09]} 6. Nc3 {[%emt 0:00:07]} g6 {[%emt 0:00:11]} 7. e3 {[%emt 0:00:13]} Bg7 {[%emt 0:00:09]} 8. Be2 {[%emt 0:00:04]} O-O {[%emt 0:00:14]} 9. O-O {[%emt 0:00:06]} a6 {[%emt 0:00:51]} 10. a4 {[%emt 0:00:12]} Re8 {[%emt 0:00:07]} 11. Nd2 {[%emt 0:00:16]} Bf5 {[%emt 0:04:11]} 12. f3 {[%emt 0:07:21]} b6 {[%emt 0:16:41]} 13. e4 {[%emt 0:00:25]} Bc8 {[%emt 0:02:17]} 14. Nc4 {[%emt 0:06:53]} Ra7 {[%emt 0:11:33]} 15. Bg5 {[%emt 0:11:44]} h6 {[%emt 0:06:13]} 16. Bf4 {[%emt 0:04:34]} Rd7 {[%emt 0:14:40]} 17. Qc2 {[%emt 0:01:41]} Nh5 {[%emt 0:12:31]} 18. Bd2 {[%emt 0:00:24]} Qh4 {[%emt 0:10:20]} 19. Be1 {[%emt 0:05:48]} Bd4+ {[%emt 0:03:18]} 20. Bf2 {[%emt 0:00:07]} Nf4 {[%emt 0:01:41]} 21. Bxd4 {[%emt 0:18:48]} cxd4 {[%emt 0:00:37]} 22. Nd1 {[%emt 0:00:24]} d3 {[%emt 0:02:52]} 23. Bxd3 {[%emt 0:00:28]} Nxd3 {[%emt 0:00:14]} 24. Qxd3 {[%emt 0:00:10]} b5 {[%emt 0:01:12]} 25. Nb6 {[%emt 0:07:52]} Rc7 {[%emt 0:00:26]} 26. Nf2 {[%emt 0:00:07]} Nd7 {[%emt 0:00:46]} 27. Nxd7 {[%emt 0:02:28]} Bxd7 {[%emt 0:00:04]} 28. Rfc1 {[%emt 0:00:15]} Rec8 {[%emt 0:00:22]} 29. Qd2 {[%emt 0:00:41]} Qxf2+ {[%emt 0:01:21]} 30. Kxf2 {[%emt 0:00:15]} Rxc1 {[%emt 0:00:07]} 31. Rxc1 {[%emt 0:00:06]} Rxc1 {[%emt 0:00:05]} 32. Qxc1 {[%emt 0:34:42]} 1-0

[Event "Niedersachsen-ch B 2024"]
[Site "Verden Aller"]
[Date "2024.01.07"]
[Round "7.29"]
[White "Margaryan, Venera"]
[Black "Ristedt, Mathis"]
[Result "1-0"]
[ECO "D58"]
[WhiteElo "1473"]
[BlackElo "1601"]
[Annotator "NA RC"]
[PlyCount "53"]
[EventDate "2024.01.01"]
[EventType "swiss"]
[EventCountry "GER"]
[SourceTitle "playchess.com"]
[Source "ChessBase"]
[SourceQuality "1"]
[TimeControl "40/5400+30:1800+30"]

1. d4 {[%emt 0:00:03]} d5 {[%emt 0:00:04]} 2. c4 {[%emt 0:00:06]} e6 {[%emt 0:00:04]} 3. Nc3 {[%emt 0:00:05]} Nf6 {[%emt 0:00:04]} 4. Bg5 {[%emt 0:00:06]} Be7 {[%emt 0:00:05]} 5. e3 {[%emt 0:00:10]} O-O {[%emt 0:00:12]} 6. Nf3 {[%emt 0:00:08]} h6 {[%emt 0:00:06]} 7. Bh4 {[%emt 0:00:34]} b6 {[%emt 0:00:13]} 8. cxd5 {[%emt 0:00:15]} exd5 {[%emt 0:00:38]} 9. Bd3 {[%emt 0:00:48]} Bb7 {[%emt 0:04:11]} 10. Bxf6 {[%emt 0:05:11]} Bxf6 {[%emt 0:00:06]} 11. Bc2 {[%emt 0:05:43]} Re8 {[%emt 0:11:02]} 12. Qd3 {[%emt 0:06:57]} g6 {[%emt 0:00:33]} 13. h4 {[%emt 0:07:50]} Ba6 {[%emt 0:02:14]} 14. Qd2 {[%emt 0:02:47]} h5 {[%emt 0:12:21]} 15. Bd3 {[%emt 0:02:21]} Bb7 {[%emt 0:16:34]} 16. O-O-O {[%emt 0:03:18]} Nd7 {[%emt 0:17:36]} 17. Rdg1 {[%emt 0:04:43]} Bg7 {[%emt 0:05:53]} 18. g4 {[%emt 0:03:51]} hxg4 {[%emt 0:03:01]} 19. Rxg4 {[%emt 0:01:50]} Nf6 {[%emt 0:00:16]} 20. Rgg1 {[%emt 0:00:16]} Ne4 {[%emt 0:05:35]} 21. Qe2 {[%emt 0:10:10]} Bc8 {[%emt 0:07:12]} 22. h5 {[%emt 0:02:04]} Bf5 {[%emt 0:01:12]} 23. hxg6 {[%emt 0:03:08]} Bxg6 {[%emt 0:00:36]} 24. Nh4 {[%emt 0:00:10]} Re6 {[%emt 0:03:00]} 25. Nxe4 {[%emt 0:01:06]} dxe4 {[%emt 0:02:03]} 26. Bc4 {[%emt 0:02:12]} Bh5 {[%emt 0:04:00]} 27. Qxh5 {[%emt 0:01:53]} 1-0

[Event "Niedersachsen-ch B 2024"]
[Site "Verden Aller"]
[Date "2024.01.07"]
[Round "7.30"]
[White "Knorr, Frank"]
[Black "Stockburger, Alexander"]
[Result "1-0"]
[ECO "A34"]
[WhiteElo "1411"]
[BlackElo "1573"]
[Annotator "NA RC"]
[PlyCount "75"]
[EventDate "2024.01.01"]
[EventType "swiss"]
[EventCountry "GER"]
[SourceTitle "playchess.com"]
[Source "ChessBase"]
[SourceQuality "1"]
[TimeControl "40/5400+30:1800+30"]

1. c4 {[%emt 0:00:03]} c5 {[%emt 0:00:32]} 2. Nc3 {[%emt 0:00:08]} Nf6 {[%emt 0:00:32]} 3. e4 {[%emt 0:00:46]} Nc6 {[%emt 0:02:03]} 4. g3 {[%emt 0:06:11]} d6 {[%emt 0:03:44]} 5. Bg2 {[%emt 0:00:11]} Bg4 {[%emt 0:02:38]} 6. Nge2 {[%emt 0:03:09]} Nd4 {[%emt 0:06:28]} 7. O-O {[%emt 0:05:04]} e5 {[%emt 0:05:07]} 8. h3 {[%emt 0:00:49]} Bf3 {[%emt 0:03:42]} 9. Bxf3 {[%emt 0:06:45]} Nxf3+ {[%emt 0:00:09]} 10. Kg2 {[%emt 0:00:10]} Ng5 {[%emt 0:02:51]} 11. d3 {[%emt 0:01:54]} Qd7 {[%emt 0:01:10]} 12. Bxg5 {[%emt 0:00:17]} Be7 {[%emt 0:02:12]} 13. Bxf6 {[%emt 0:00:46]} Bxf6 {[%emt 0:00:10]} 14. Nd5 {[%emt 0:00:14]} Bd8 {[%emt 0:01:17]} 15. f4 {[%emt 0:08:19]} g5 {[%emt 0:04:57]} 16. f5 {[%emt 0:02:39]} f6 {[%emt 0:01:08]} 17. Nec3 {[%emt 0:00:20]} h5 {[%emt 0:01:31]} 18. Nb5 {[%emt 0:00:15]} Kf7 {[%emt 0:02:37]} 19. Qa4 {[%emt 0:04:44]} Kg7 {[%emt 0:03:11]} 20. Nbc3 {[%emt 0:02:05]} Qf7 {[%emt 0:03:37]} 21. b4 {[%emt 0:04:05]} b6 {[%emt 0:06:15]} 22. Qc6 {[%emt 0:03:28]} Be7 {[%emt 0:01:57]} 23. Nxe7 {[%emt 0:00:16]} Qxe7 {[%emt 0:00:05]} 24. Nd5 {[%emt 0:00:14]} Qd8 {[%emt 0:01:06]} 25. Qc7+ {[%emt 0:03:19]} Qxc7 {[%emt 0:01:05]} 26. Nxc7 {[%emt 0:00:11]} Rab8 {[%emt 0:01:01]} 27. bxc5 {[%emt 0:04:39]} dxc5 {[%emt 0:01:02]} 28. Nd5 {[%emt 0:03:28]} Rhc8 {[%emt 0:01:16]} 29. Rfb1 {[%emt 0:01:03]} Rc6 {[%emt 0:00:26]} 30. a4 {[%emt 0:00:45]} a5 {[%emt 0:01:21]} 31. Ra2 {[%emt 0:01:13]} Kf7 {[%emt 0:00:58]} 32. Rab2 {[%emt 0:01:03]} Rd6 {[%emt 0:03:34]} 33. Kf3 {[%emt 0:01:26]} g4+ {[%emt 0:01:15]} 34. hxg4 {[%emt 0:00:20]} hxg4+ {[%emt 0:00:19]} 35. Ke3 {[%emt 0:00:18]} Rh8 {[%emt 0:00:57]} 36. Nxb6 {[%emt 0:02:19]} Rh3 {[%emt 0:00:44]} 37. Rg2 {[%emt 0:00:24]} Rh8 {[%emt 0:01:42]} 38. Nd5 {[%emt 0:01:59]} 1-0